Cogmind - Beta 16 @@@ ROGUE MODE // 2025.10.26 @ 14:19:07 Player: 3.14 Result: Destroyed by 5M-UBN(R) with Subdweller Shrapnel Launcher Performance ------------- Evolutions (0) 0 Regions Visited (2) 400 Robots Destroyed (21) 105 Value Destroyed (613) 613 Prototype IDs (0) 0 Alien Tech Used (0) 0 Bonus (0) 0 TOTAL SCORE: 1118 Bonus ------- None Cogmind --------- Core Integrity 0/250 Matter 197/300 Energy 67/200 System Corruption 0% Temperature Cool (0) Movement Treading (160) Location -10/Subcaves Parts ------- > --- POWER (1) -------- Subdweller Power Source > --- PROPULSION (2) --- Improved Treads Improved Treads > --- UTILITY (2) ------ Disposable Heat Sink Large Storage Unit > --- WEAPON (2) ------- Subdweller Laser > --- INVENTORY (15) --- Ion Engine Improved Treads Improved Treads Arachnoskeleton High-capacity Matter Pod (200) Scrap Shield Subdweller Laser Battle Rifle Rocket Launcher Rocket Launcher Subdweller Shrapnel Launcher Hammer Peak State ------------ > --- POWER ------------ Subdweller Power Source > --- PROPULSION ------- Improved Treads Improved Treads > --- UTILITY ---------- Disposable Heat Sink Large Storage Unit > --- WEAPON ----------- Subdweller Laser Subdweller Laser > --- INVENTORY -------- Ion Engine Improved Treads Improved Treads Arachnoskeleton High-capacity Matter Pod Scrap Shield Tractor Beam Subdweller Laser Light Assault Rifle Rocket Launcher Rocket Launcher Subdweller Shrapnel Launcher [Rating: 17] Favorites ----------- Power Subdweller Power Source Engine Subdweller Power Source Propulsion Light Treads Treads Light Treads Utility Large Storage Unit Device Disposable Heat Sink Storage Large Storage Unit Processor Transport Network Coupler Weapon Assault Rifle Energy Gun Subdweller Laser Ballistic Gun Assault Rifle Launcher Rocket Launcher Special Weapon Mining Laser Build | -11 -10 -10 ------- Run | Yrd Mat Sub Slots Evolved . | . . . Power . | . . . Propulsion . | . . . Utility . | . . . Weapon . | . . . Parts Attached 24 | 7 6 11 Power 3 | 1 1 1 Engine 3 | 1 1 1 Core . | . . . Reactor . | . . . Propulsion 5 | 2 . 3 Treads 5 | 2 . 3 Leg . | . . . Wheel . | . . . Hover . | . . . Flight . | . . . Utility 6 | 2 3 1 Device 2 | 1 . 1 Storage 3 | 1 2 . Processor 1 | . 1 . Hackware . | . . . Protection . | . . . Artifact . | . . . Weapon 10 | 2 2 6 Energy Gun 4 | . . 4 Energy Cannon . | . . . Ballistic Gun 3 | 2 1 . Ballistic Cannon . | . . . Launcher 2 | . 1 1 Special Weapon 1 | . . 1 Impact Weapon . | . . . Slashing Weapon . | . . . Piercing Weapon . | . . . Special Melee Weapon . | . . . Unidentified Prototypes . | . . . Parts Lost 5 | . . 5 Power 1 | . . 1 Propulsion 2 | . . 2 Utility . | . . . Weapon 2 | . . 2 Highest Loss Streak 2 | . . 2 To Critical Strikes . | . . . Average Backups 10 | 4 9 11 Power . | . 1 1 Propulsion 3 | 1 3 3 Utility 1 | . 1 2 Weapon 4 | 1 3 5 Tool/Special . | . . . Unused Backups 13 | . 3 10 Power 1 | . . 1 Propulsion 4 | . 2 2 Utility 3 | . . 3 Weapon 5 | . 1 4 Tool/Special . | . . . Average Slot Usage (%) 99 | . 100 99 Engine 13 | . 14 13 Treads 27 | . 28 27 Device 10 | . 6 12 Storage 14 | . 14 14 Processor 3 | . 7 1 Energy Gun 12 | . . 18 Ballistic Gun 15 | . 28 7 Peak Build Rating 17 | 7 9 17 Average Rating 11 | 5 7 14 On Entrance 5 | . 7 8 Avg Prop Armor Cover (%) . | . . . Naked Turns . | . . . Heaviest Build 34 | 14 29 34 Greatest Support 46 | 40 40 46 Greatest Overweight (x) . | . . . Average Overweight (x) . | . . . Largest Inventory Capacity 15 | 8 15 15 Average Capacity 12 | 5 10 15 Most Carried 15 | 6 10 15 Average Carried 11 | 4 9 13 Final Capacity 15 | 8 15 15 Final Carried 15 | 6 10 15 Class Distribution -------------------- 68% | Mutant 31% | Scavenger-Mutant Dominant Class ---------------- Mutant | -10/Materials Scavenger-Mutant | -10/Subcaves Resources | -11 -10 -10 ----------- Run | Yrd Mat Sub Matter Collected 865 | 285 156 424 Remotely . | . . . Salvage Created 723 | 119 220 384 Parts 45 | 8 15 22 Haulers Intercepted 1 | . 1 . Recyclers Shooed . | . . . Parts Field Recycled . | . . . Retrieved Matter . | . . . Parts Self-Destructed 11 | . . 11 Prevented . | . . . Parts Restored . | . . . Kills | -11 -10 -10 ------- Run | Yrd Mat Sub Combat Hostiles Destroyed 16 | . 4 12 Guns 14 | . 4 10 AOE 2 | . . 2 Classes Destroyed 8 | 2 2 4 Tunneler 2 | 2 . . Hauler 1 | . 1 . Recycler 1 | 1 . . Turret 1 | . . 1 Swarmer 2 | . . 2 Grunt 4 | . 4 . Sentry 1 | . . 1 Subdweller 9 | . . 9 Best Kill Streak 3 | 2 2 3 Combat Bots Only 3 | . 2 3 Max Kills in Single Turn 2 | 1 1 2 Gunslinging . | . . . Exploded 2 | . . 2 Melee . | . . . Uniques/NPCs Destroyed . | . . . Combat | -11 -10 -10 -------- Run | Yrd Mat Sub Hostile Shots Fired 103 | . 14 89 Missed 31 | . 2 29 Hits 72 | . 12 60 Projectile 72 | . 12 60 AOE 7 | . . 7 Damage Taken 1409 | . 132 1277 Core 261 | . 44 217 Absorbed by Shields . | . . . Core Remaining (%) 100 | 100 . . Volleys Fired 83 | 5 16 62 Largest 2 | 2 2 2 Hottest 120 | 40 40 120 Shots Fired 150 | 10 32 108 Gun 136 | 10 32 94 Cannon . | . . . Launcher 8 | . . 8 Special 6 | . . 6 Kinetic 80 | 10 32 38 Thermal 62 | . . 62 Explosive 8 | . . 8 Electromagnetic . | . . . Robot Hit Streak 20 | 9 10 20 Robot Miss Streak 3 | . 2 3 Penetration Max . | . . . Secondary Targets 2 | . 1 1 Max Gunslinging Chain 1 | . 1 1 Shots Hit Robots 105 | 9 19 77 Core Hits 38 | 3 10 25 Critical Kills 2 | . . 2 Critical Parts Destroyed . | . . . Critical Strikes 2 | . . 2 Destroy 2 | . . 2 Melee Attacks . | . . . Impact . | . . . Slashing . | . . . Piercing . | . . . Sneak Attacks . | . . . Combat Hostiles . | . . . Follow-up Attacks . | . . . Damage Inflicted 1824 | 90 265 1469 Guns 1653 | 90 265 1298 Cannons . | . . . Explosions 171 | . . 171 Melee . | . . . Ramming . | . . . Kinetic 728 | 90 265 373 Thermal 925 | . . 925 Explosive 171 | . . 171 Electromagnetic . | . . . Impact . | . . . Slashing . | . . . Piercing . | . . . Highest Corruption . | . . . Average Corruption . | . . . Corruption Purged . | . . . Corruption Blocked . | . . . Overload Shots . | . . . Overflow Damage . | . . . Projectiles . | . . . Explosions . | . . . Melee . | . . . Knockbacks . | . . . Impact . | . . . Kinetic . | . . . Secondary . | . . . Self-Inflicted Damage 88 | . . 88 Shots 2 | . . 2 Rammed 1 | 1 . . Targets Rammed 2 | 2 . . Kicked . | . . . Crushed 1 | 1 . . Highest Temperature 4 | . . 4 Average Temperature 1 | . . 1 Received Heat Transfer 360 | . 72 288 Siege Activations . | . . . Martial Activations . | . . . Shielding Activations . | . . . Robots Disrupted . | . . . Combat Hostiles . | . . . Robots Corrupted . | . . . Combat Hostiles . | . . . Parts Fried . | . . . Impact Corruptions . | . . . Robots Melted . | . . . Combat Hostiles . | . . . Parts Melted 4 | . . 4 Heat Transferred 1150 | . . 1150 Parts Sabotaged . | . . . Parts Stolen . | . . . Parts Stripped . | . . . Power Chain Reactions . | . . . Alert | -11 -10 -10 ------- Run | Yrd Mat Sub Maximum Alert Level . | . . . Low Security (%) 100 | 100 100 . Level 1 . | . . . Level 2 . | . . . Level 3 . | . . . Level 4 . | . . . Level 5 . | . . . High Security . | . . . Max Security . | . . . Peak Influence 50 | 5 50 . Initial . | . . . Average 10 | 1 13 . Influence Increases 263 | 15 138 110 Destroy 0b10 Robot/C 160 | . 80 80 Destroy 0b10 Robot/NC 20 | 15 5 . Destroy Leader 22 | . 22 . Successful Hack 31 | . 31 . Lose Combat Pursuer 30 | . . 30 Influence Decreases 207 | 15 138 54 Time Decay 197 | 15 138 44 Lost Part 10 | . . 10 Squads Dispatched 2 | . 2 . Investigation . | . . . Extermination . | . . . Reinforcement 2 | . 2 . Assault . | . . . Garrison . | . . . Intercept . | . . . Searches Triggered . | . . . Construction Impeded . | . . . Haulers Reinforced . | . . . Active Scanning Responses . | . . . Cargo Convoy Interrupts . | . . . Stealth | -11 -10 -10 --------- Run | Yrd Mat Sub Distress Signals . | . . . Communications Jammed . | . . . Distress Signals . | . . . Times Spotted 23 | . 8 15 Peak Tracking Total 3 | . 3 3 Tactical Retreats 1 | . . 1 Traps | -11 -10 -10 ------- Run | Yrd Mat Sub Traps Triggered . | . . . Indirectly . | . . . Trap Hack Attempts . | . . . Triggered . | . . . Disarmed . | . . . Reprogrammed . | . . . Reused . | . . . Traps Extracted . | . . . Installed . | . . . Triggered . | . . . Machines | -11 -10 -10 ---------- Run | Yrd Mat Sub Machines Disabled . | . . . Max in Single Turn . | . . . Machines Repaired . | . . . Machines Dismantled . | . . . Machines Sabotaged . | . . . Overloaded Fab Kills . | . . . Hacking | -11 -10 -10 --------- Run | Yrd Mat Sub Machines Accessed 3 | . 3 . Terminals 3 | . 3 . Fabricators . | . . . Repair Stations . | . . . Recycling Units . | . . . Scanalyzers . | . . . Garrison Access . | . . . Total Hacks 8 | . 8 . Successful 3 | . 3 . Failed 5 | . 5 . Catastrophic . | . . . Database Lockouts . | . . . Manual 7 | . 7 . Terminals 8 | . 8 . Fabricators . | . . . Repair Stations . | . . . Recycling Units . | . . . Scanalyzers . | . . . Garrison Access . | . . . Terminal Hacks . | . . . Fabricator Hacks . | . . . Repair Station Hacks . | . . . Recycling Unit Hacks . | . . . Scanalyzer . | . . . Garrison Access Hacks . | . . . Unauthorized Hacks 3 | . 3 . Terminals 3 | . 3 . Botnet 1 | . 1 . Skim 2 | . 2 . Fabricators . | . . . Repair Stations . | . . . Recycling Units . | . . . Scanalyzers . | . . . Garrison Access . | . . . Data Cores Recovered . | . . . Used . | . . . Hacking Detections 3 | . 3 . Full Trace Events . | . . . Feedback Events . | . . . Feedback Blocked . | . . . Robot Schematics Acquired . | . . . Robots Built . | . . . Authchips . | . . . Time . | . . . Total Robot Build Rating . | . . . Part Schematics Acquired . | . . . Parts Built . | . . . Authchips . | . . . Time . | . . . Total Part Build Rating . | . . . Part Studies Acquired . | . . . Parts Repaired . | . . . Time . | . . . Parts Recycled . | . . . Recycled Matter . | . . . Retrieved Matter . | . . . Retrieved Components . | . . . Parts Scanalyzed . | . . . Part Schematics Acquired . | . . . Parts Damaged . | . . . Bothacking | -11 -10 -10 ------------ Run | Yrd Mat Sub Used RIF Installer . | . . . Robots Hacked . | . . . Non-combat . | . . . Combat . | . . . Robot Hacks Applied . | . . . Relay Couplers Released . | . . . Fabnet Peak Effective % . | . . . Robots Rewired . | . . . Allies Hacked . | . . . Hacks Repelled . | . . . Allies | -11 -10 -10 -------- Run | Yrd Mat Sub Total Allies . | . . . Largest Group . | . . . Highest-Rated Group . | . . . Highest-Rated Ally . | . . . Total Orders . | . . . Ally Attacks . | . . . Total Damage . | . . . Kills . | . . . Allies Corrupted . | . . . Allies Melted . | . . . Intel | -11 -10 -10 ------- Run | Yrd Mat Sub Active Infowar (turns) 651 | 79 487 85 Seismic 319 | 79 240 . T.N.C. 332 | . 247 85 Robot Analysis Total . | . . . Derelict Logs Recovered 1 | . . 1 Drone Launches . | . . . Drone Recoveries . | . . . Exploration | -11 -10 -10 ------------- Run | Yrd Mat Sub Turns Passed 1535 | 168 487 880 Spaces Moved 712 | 87 252 373 Core 5 | 5 . . Treads 707 | 82 252 373 Legs . | . . . Wheels . | . . . Hover . | . . . Flight . | . . . Fastest Speed 50 | 50 160 160 Average Speed 159 | 153 160 160 Slowest Speed 160 | 160 160 160 Overloaded Moves . | . . . Propulsion Burnouts . | . . . Robots Hopped . | . . . Potential Cave-ins . | . . . Cave-ins Triggered . | . . . Exploration Rate (%) 25 | 4 43 28 Regions Visited 2 Branch Regions 1 Pre-discovered Areas . | . . . Known Exits Taken . | . . . Unknown Exits Taken 2 | 1 1 . Scrap Searched . | . . . Spaces Dug . | . . . Terrain Destroyed 44 | . . 44 Melee . | . . . Projectile 1 | . . 1 AOE 43 | . . 43 Terrain Rammed . | . . . Walls Destroyed . | . . . Machines Disabled . | . . . Actions | -11 -10 -10 --------- Run | Yrd Mat Sub Total 952 | 108 306 538 Wait 90 | . 17 73 Move 710 | 86 251 373 Hop . | . . . Pick Up 23 | 7 7 9 Fast Attach 12 | 7 1 4 Attach 3 | . . 3 Detach . | . . . Swap 13 | . 6 7 Drop 16 | 1 8 7 Fire 83 | 5 16 62 Melee . | . . . Ram . | . . . Kick . | . . . Crush 2 | 2 . . Escape Stasis . | . . . Rewire . | . . . Trap . | . . . Miscellaneous . | . . . Route ------- -11/Scrapyard -10/Materials (discovered 2 exits: [*Mat] / [*Sub]) -10/Subcaves (discovered 2 exits: [*Mat] / [*Rec]) History --------- Turn | Location | Event 12 | -11/Scrapyard | Discovered new exit (range 16) 169 | -11/Scrapyard | Entered Materials 327 | -10/Materials | Build established: Mutant 520 | -10/Materials | Discovered new exit (range 3) 638 | -10/Materials | Discovered new exit (range 11) 656 | -10/Materials | Entered Subcaves 657 | -10/Subcaves | Shifting Twisted Machinery released Scrap Shield 657 | -10/Subcaves | Approached by a straggling Scientist 716 | -10/Subcaves | Ambushed by Subdweller buried in earth 888 | -10/Subcaves | Learned Materials stockpile data 945 | -10/Subcaves | A swath of the cavern ceiling suddenly collapsed 996 | -10/Subcaves | A Subdweller sparked back to life 996 | -10/Subcaves | A Subdweller sparked back to life 996 | -10/Subcaves | A Subdweller sparked back to life 997 | -10/Subcaves | Core integrity fell below 50% 1031 | -10/Subcaves | Found Prototype Leg 1127 | -10/Subcaves | Discovered new exit (range 16) 1354 | -10/Subcaves | Build established: Scavenger-Mutant 1487 | -10/Subcaves | Discovered new exit (range 12) 1492 | -10/Subcaves | Core integrity fell below 20% 1495 | -10/Subcaves | Ambushed by Subdweller buried in earth 1506 | -10/Subcaves | Ambushed by Subdweller buried in earth 1536 | -10/Subcaves | Destroyed by 5M-UBN(R) with Subdweller Shrapnel Launcher Last Messages --------------- 01487_ EXIT=FOUND 01489_ The unstable cave ceiling collapses. 01489_ Scrap Shield Fragment crushed. 01489_ The unstable cave ceiling collapses. 01493_ Autobeam Turret destroyed. 01496_ 5M-UBN(R): "ARGHSUB!" 01501_ The unstable cave ceiling collapses. 01501_ Autobeam Turret destroyed. 01506_ The unstable cave ceiling collapses. 01507_ XV-OGA(R): "ARGHSUB!" 01508_ The unstable cave ceiling collapses. 01510_ Subatomizers dissect the Multitool. 01511_ The unstable cave ceiling collapses. 01516_ 5M-UBN(R) affixes Scrap Shield Fragment to Scrap Shield. 01521_ Subatomizers dissect the Multitool. 01521_ The unstable cave ceiling collapses. 01532_ Subatomizers dissect the Multitool. 01532_ XV-OGA(R) destroyed. 01535_ Destroyed Scrap Shield. 01536_ Sub. Laser destroyed. Map ----- +----------------------------------------------------+ | ?????????????????????????????????????????????????? | | ?????????????????????????????????????????????????? | | ?????????????????????????????????????????????????? | | ?????????????????????????????????????????????????? | | ?????????????????????????????????????????????????? | | ?????????????????????????????????????????????????? | | ?????????????????????????????????????????????????? | | ?????????????????????????????????????????????????? | | ?????????????????????????????????????????????????? | | ?????????????????????????????????????????????????? | | ?????????????????????????????????????????????????? | | ?????????????????????????????????????????????????? | | ?????????????????????????????????????????????????? | | ?????????????????????????????????????????????????? | | ?????????????????????????????????????????????????? | | ?????????????????????????????????" ??????????????? | | ???????????????????????????????? "???????????????? | | ???????????????????????????###?# " ""????????????? | | ??????????????????????????? ## "" #????????????? | | ?????????????????????###### """ "#????????????? | | ?????????????????????# # ;; "#????????????? | | ????????????????????## ; ;; |##???????????? | | ????????????????????# ; ==%#???????????? | | ???????????????????## """"""?????????? | | ???????????????????# & ""?????????? | | ????????###????????## @ ]%] " ?????????? | | ???????## #?????????# ##????????????? | | ???????# #?????????# # #???????????? | | ???????# #?????????# # #???????????? | | ??????## ##?####???## R##???????????? | | ?????## # ### #????# ; ##????????????? | | ###### ###??## #????????????? | | #### ; #???????????? | | " ## # ### ???????????? | | "#### # ## ## #???????????? | | ""#??# ## < ????????????? | | " #??## " # ; ; #????????????? | | ""##?### # ; ###??????????????? | | " ## # ### ##### ##??????????????? | | " ##?# # # #??## ??????????????? | | "" """" ""?# ###??# ??????????????? | | " " """" """?# ???# ??????????????? | | """ """" "" "?# # ??# #??????????????? | | " ""?"""???######## ## #??????????????? | | " ### ???????????????### #??????????????? | | #??"""????????????????# #????#####?????? | | " ##??????????????????????? #????# #?????? | | " ##?????????"??????????????# ###??# #?????? | | # #????????""??????????#????# #### #?????? | | # ##?????????" ????????? #???## # # "##????? | +----------------------------------------------------+ Best States ------------- Heat Dissipation 25 Coolant Potential 50 Energy Generation 15 Energy Capacity 250 Matter Stores 300 Matter Capacity 300 Sight Range 16 Terrain Scan Density 10 Evasion (%) 40 Recoil Reduction 2 Item Schematics ----------------- None Robot Schematics ------------------ None Fabricated ------------ Nothing Repaired ---------- Nothing Studied --------- None Alien Tech Used ----------------- None Achievements -------------- Do Not Disturb Challenges ------------ None Game ------ Seed ChromionDiametricShooter Manual? 0 Play Time 00:11:54 Cumulative 939.9 hours Start 2025.10.26 @ 14:11:19 End 2025.10.26 @ 14:19:07 Sessions 1 Manual Loads 0 Difficulty Rogue Special Mode None Game No. 1592 Rogue 1592 Adventurer 0 Explorer 0 Win Type - Total 92 Types 54/1/16/15/4/0/0/1/0/1 Lore% 92 Gallery% 83 Achievement% 56 Wizard Run 0 Options --------- Layout 0 ASCII 1 Keyboard 0 Movement Numpad Keybinds 1 Fullscreen 2 Font 18/SmallcapsGlow Map View 76x50 Zoom Use 0% Tactical HUD 1 Map Filters NONE Filters NONE Steam 1 RUN: 902c6248-ebb9-48ea-99fa-4f09cab3256a